[Event "Late-Titled-Tuesday-Blitz-December-26-2023"]
[Site "Chess.com"]
[Date "2023.12.26"]
[Round "3"]
[White "slidingknight2775"]
[Black "DuleMudule"]
[Result "0-1"]
[WhiteElo "2699"]
[BlackElo "2924"]
[TimeControl "180+1"]
[EndTime "14:29:57 PST"]
[Termination "DuleMudule won by resignation"]

1. Nf3 {[%clk 0:03:00.9]} 1... d5 {[%clk 0:02:33.3]} 2. g3 {[%clk 0:03:00.4]}
2... Nc6 {[%clk 0:02:32.9]} 3. d4 {[%clk 0:02:58.5]} 3... Bf5 {[%clk 0:02:33.5]}
4. Bg2 {[%clk 0:02:57.4]} 4... Nb4 {[%clk 0:02:33.5]} 5. Na3 {[%clk 0:02:56.5]}
5... c6 {[%clk 0:02:34.1]} 6. c3 {[%clk 0:02:54.9]} 6... Na6 {[%clk 0:02:34]} 7.
Nc2 {[%clk 0:02:54.7]} 7... h6 {[%clk 0:02:34.2]} 8. a4 {[%clk 0:02:54.4]} 8...
e6 {[%clk 0:02:33.8]} 9. O-O {[%clk 0:02:52.7]} 9... Nf6 {[%clk 0:02:33.9]} 10.
Bf4 {[%clk 0:02:43.8]} 10... Be7 {[%clk 0:02:28.1]} 11. Ne5 {[%clk 0:02:41.2]}
11... O-O {[%clk 0:02:27.2]} 12. b4 {[%clk 0:02:38.4]} 12... Ne4 {[%clk
0:02:23.3]} 13. Bd2 {[%clk 0:02:32.3]} 13... Nc7 {[%clk 0:02:19.4]} 14. Be1
{[%clk 0:02:30.2]} 14... Bd6 {[%clk 0:02:17.9]} 15. Nd3 {[%clk 0:02:27.3]} 15...
b6 {[%clk 0:02:17.4]} 16. f3 {[%clk 0:02:20.8]} 16... Nf6 {[%clk 0:02:16.7]} 17.
Nf2 {[%clk 0:02:21.4]} 17... Bh7 {[%clk 0:02:14.3]} 18. e4 {[%clk 0:02:20.1]}
18... dxe4 {[%clk 0:02:06]} 19. fxe4 {[%clk 0:02:21]} 19... e5 {[%clk
0:02:06.4]} 20. Ne3 {[%clk 0:01:40.3]} 20... Qe7 {[%clk 0:02:00.5]} 21. Nc4
{[%clk 0:01:28.9]} 21... Rad8 {[%clk 0:01:59.3]} 22. Nxd6 {[%clk 0:01:07.9]}
22... Rxd6 {[%clk 0:01:58.3]} 23. Ng4 {[%clk 0:00:52.8]} 23... Nxg4 {[%clk
0:01:50.9]} 24. Qxg4 {[%clk 0:00:53.7]} 24... exd4 {[%clk 0:01:50.9]} 25. cxd4
{[%clk 0:00:52]} 25... Rxd4 {[%clk 0:01:50.8]} 26. Bc3 {[%clk 0:00:51.8]} 26...
f5 {[%clk 0:01:37.7]} 27. Qe2 {[%clk 0:00:44.1]} 27... Rd6 {[%clk 0:01:31.7]}
28. Rae1 {[%clk 0:00:34.2]} 28... fxe4 {[%clk 0:01:23.5]} 29. Rxf8+ {[%clk
0:00:35.1]} 29... Qxf8 {[%clk 0:01:23.4]} 30. Bxe4 {[%clk 0:00:30.2]} 30... Bxe4
{[%clk 0:01:21.9]} 31. Qxe4 {[%clk 0:00:31.1]} 31... Re6 {[%clk 0:01:17.4]} 32.
Qc4 {[%clk 0:00:29]} 32... Qf7 {[%clk 0:01:10.3]} 33. Rxe6 {[%clk 0:00:21.9]}
33... Qxe6 {[%clk 0:01:08]} 34. Qd4 {[%clk 0:00:22.5]} 34... Qf7 {[%clk
0:00:59.7]} 35. Qd8+ {[%clk 0:00:15.7]} 35... Kh7 {[%clk 0:00:59.1]} 36. Qd3+
{[%clk 0:00:15.6]} 36... Qg6 {[%clk 0:00:59.2]} 37. Qd4 {[%clk 0:00:14.7]} 37...
Nd5 {[%clk 0:00:58.5]} 38. Bb2 {[%clk 0:00:14.5]} 38... Nf6 {[%clk 0:00:57.5]}
39. a5 {[%clk 0:00:12.6]} 39... Qb1+ {[%clk 0:00:55.5]} 40. Kg2 {[%clk
0:00:12.5]} 40... Qc2+ {[%clk 0:00:55.1]} 41. Kg1 {[%clk 0:00:11.7]} 41... c5
{[%clk 0:00:53.1]} 42. bxc5 {[%clk 0:00:04.9]} 42... bxc5 {[%clk 0:00:54]} 43.
Qe5 {[%clk 0:00:05.4]} 43... c4 {[%clk 0:00:39]} 44. Qd4 {[%clk 0:00:03.9]}
44... a6 {[%clk 0:00:34.8]} 45. Qe5 {[%clk 0:00:03.1]} 45... h5 {[%clk
0:00:33.6]} 46. Qd4 {[%clk 0:00:03.1]} 46... Qe2 {[%clk 0:00:32.6]} 47. Qe5
{[%clk 0:00:03]} 47... Qxe5 {[%clk 0:00:28.2]} 48. Bxe5 {[%clk 0:00:03.9]} 48...
Nd5 {[%clk 0:00:28.6]} 49. Kf2 {[%clk 0:00:04.5]} 49... Kg6 {[%clk 0:00:28.5]}
50. Ke2 {[%clk 0:00:04.1]} 50... Kf7 {[%clk 0:00:28.9]} 51. Kf3 {[%clk
0:00:02.8]} 51... g6 {[%clk 0:00:28.3]} 52. Ke4 {[%clk 0:00:03.4]} 52... Ke6
{[%clk 0:00:28.9]} 53. Bd4 {[%clk 0:00:02.9]} 53... Nb4 {[%clk 0:00:28.1]} 54.
Bc3 {[%clk 0:00:02.5]} 54... Nc6 {[%clk 0:00:28.6]} 55. h3 {[%clk 0:00:02.8]}
55... Ne7 {[%clk 0:00:25.9]} 56. g4 {[%clk 0:00:03.2]} 56... Nd5 {[%clk
0:00:25.4]} 57. Ba1 {[%clk 0:00:02.6]} 57... hxg4 {[%clk 0:00:25.5]} 58. hxg4
{[%clk 0:00:03.5]} 58... Nf6+ {[%clk 0:00:24.2]} 59. Kd4 {[%clk 0:00:04]} 59...
Nxg4 {[%clk 0:00:22]} 60. Kxc4 {[%clk 0:00:04.6]} 60... Kd6 {[%clk 0:00:16.5]}
61. Kd4 {[%clk 0:00:05]} 61... Kc6 {[%clk 0:00:17.1]} 62. Ke4 {[%clk 0:00:05.3]}
62... Nf2+ {[%clk 0:00:15]} 63. Kf4 {[%clk 0:00:04.3]} 63... Nd3+ {[%clk
0:00:13.2]} 64. Kg5 {[%clk 0:00:04.4]} 64... Kb5 {[%clk 0:00:14.1]} 65. Kxg6
{[%clk 0:00:05]} 65... Kxa5 {[%clk 0:00:14.4]} 66. Kf5 {[%clk 0:00:05.7]} 66...
Kb4 {[%clk 0:00:14.9]} 67. Ke4 {[%clk 0:00:06.4]} 67... Kc4 {[%clk 0:00:15.2]}
68. Ke3 {[%clk 0:00:07.1]} 68... Nb4 {[%clk 0:00:13.7]} 69. Kd2 {[%clk
0:00:06.9]} 69... Kb3 {[%clk 0:00:14]} 70. Kc1 {[%clk 0:00:06.4]} 70... a5
{[%clk 0:00:14.4]} 71. Kb1 {[%clk 0:00:06.5]} 71... a4 {[%clk 0:00:15]} 72. Bh8
{[%clk 0:00:06.3]} 72... a3 {[%clk 0:00:15]} 73. Bg7 {[%clk 0:00:04.6]} 73...
a2+ {[%clk 0:00:13.5]} 74. Kc1 {[%clk 0:00:05.1]} 74... Nd3+ {[%clk 0:00:13.8]}
75. Kd2 {[%clk 0:00:03.4]} 75... Nb2 {[%clk 0:00:14.4]} 76. Bxb2 {[%clk
0:00:04.3]} 76... Kxb2 {[%clk 0:00:14.8]} 0-1

[Event "Late-Titled-Tuesday-Blitz-December-26-2023"]
[Site "Chess.com"]
[Date "2023.12.26"]
[Round "3"]
[White "micke12a"]
[Black "TST2014"]
[Result "1/2-1/2"]
[WhiteElo "2414"]
[BlackElo "2565"]
[TimeControl "180+1"]
[EndTime "14:30:02 PST"]
[Termination "Game drawn by stalemate"]

1. e4 {[%clk 0:03:00.9]} 1... c5 {[%clk 0:02:34.4]} 2. Nc3 {[%clk 0:02:56.2]}
2... Nc6 {[%clk 0:02:33.9]} 3. Bb5 {[%clk 0:02:55.5]} 3... Nd4 {[%clk
0:02:33.1]} 4. Nf3 {[%clk 0:02:55.5]} 4... a6 {[%clk 0:02:32.6]} 5. Bd3 {[%clk
0:02:55.4]} 5... Nc6 {[%clk 0:02:31.8]} 6. O-O {[%clk 0:02:54.1]} 6... d6 {[%clk
0:02:31.5]} 7. Re1 {[%clk 0:02:53.7]} 7... e5 {[%clk 0:02:26.3]} 8. Nd5 {[%clk
0:02:46.7]} 8... Nf6 {[%clk 0:02:21.3]} 9. c3 {[%clk 0:02:46.5]} 9... Be6 {[%clk
0:02:17.7]} 10. Nxf6+ {[%clk 0:02:40.9]} 10... Qxf6 {[%clk 0:02:16.8]} 11. Be2
{[%clk 0:02:31]} 11... Bg4 {[%clk 0:02:03.4]} 12. h3 {[%clk 0:02:30]} 12... Bxf3
{[%clk 0:02:02.3]} 13. Bxf3 {[%clk 0:02:29.9]} 13... Be7 {[%clk 0:02:02]} 14. d3
{[%clk 0:02:27.5]} 14... g6 {[%clk 0:01:45.1]} 15. Be3 {[%clk 0:02:20.4]} 15...
h5 {[%clk 0:01:43.7]} 16. Qd2 {[%clk 0:02:18.4]} 16... Qe6 {[%clk 0:01:42.6]}
17. Rad1 {[%clk 0:02:08.8]} 17... Bf6 {[%clk 0:01:41.8]} 18. a3 {[%clk
0:02:02.1]} 18... O-O {[%clk 0:01:33.9]} 19. b4 {[%clk 0:02:00.4]} 19... b6
{[%clk 0:01:26.9]} 20. Bg5 {[%clk 0:01:54.6]} 20... Bg7 {[%clk 0:01:21.1]} 21.
Rb1 {[%clk 0:01:35.5]} 21... b5 {[%clk 0:01:19.1]} 22. Be3 {[%clk 0:01:33.9]}
22... Qe7 {[%clk 0:01:08.5]} 23. Bd1 {[%clk 0:01:16.5]} 23... Kh7 {[%clk
0:00:44.4]} 24. Bb3 {[%clk 0:01:10]} 24... Rac8 {[%clk 0:00:43.8]} 25. Bd5
{[%clk 0:01:08]} 25... f5 {[%clk 0:00:39.1]} 26. Bg5 {[%clk 0:00:53.8]} 26...
Bf6 {[%clk 0:00:38.5]} 27. Bxf6 {[%clk 0:00:52.7]} 27... Qxf6 {[%clk 0:00:38.3]}
28. a4 {[%clk 0:00:46.8]} 28... cxb4 {[%clk 0:00:37.1]} 29. Bxc6 {[%clk
0:00:44.4]} 29... Rxc6 {[%clk 0:00:28.3]} 30. Rxb4 {[%clk 0:00:43.8]} 30... bxa4
{[%clk 0:00:21.8]} 31. Rxa4 {[%clk 0:00:43.8]} 31... f4 {[%clk 0:00:18.7]} 32.
d4 {[%clk 0:00:40.1]} 32... f3 {[%clk 0:00:17.8]} 33. g3 {[%clk 0:00:40.2]}
33... h4 {[%clk 0:00:14.7]} 34. g4 {[%clk 0:00:33.2]} 34... Rfc8 {[%clk
0:00:12]} 35. Ra3 {[%clk 0:00:28.5]} 35... exd4 {[%clk 0:00:11.3]} 36. Qxd4
{[%clk 0:00:28.4]} 36... Qxd4 {[%clk 0:00:10.9]} 37. cxd4 {[%clk 0:00:28.5]}
37... Rc1 {[%clk 0:00:10.4]} 38. Rxc1 {[%clk 0:00:24.7]} 38... Rxc1+ {[%clk
0:00:10.1]} 39. Kh2 {[%clk 0:00:25.4]} 39... Rc4 {[%clk 0:00:09.5]} 40. Rxf3
{[%clk 0:00:21.4]} 40... Rxd4 {[%clk 0:00:09.5]} 41. Ra3 {[%clk 0:00:20.2]}
41... Rxe4 {[%clk 0:00:08.8]} 42. Rxa6 {[%clk 0:00:20.4]} 42... d5 {[%clk
0:00:08.5]} 43. Rd6 {[%clk 0:00:19.7]} 43... Re5 {[%clk 0:00:08]} 44. Kg2 {[%clk
0:00:19.2]} 44... g5 {[%clk 0:00:08.2]} 45. f4 {[%clk 0:00:17]} 45... gxf4
{[%clk 0:00:05.6]} 46. Kf3 {[%clk 0:00:17.4]} 46... Re3+ {[%clk 0:00:05.9]} 47.
Kxf4 {[%clk 0:00:17.7]} 47... Rxh3 {[%clk 0:00:06.4]} 48. Rxd5 {[%clk
0:00:18.4]} 48... Rh1 {[%clk 0:00:06.7]} 49. Kg5 {[%clk 0:00:18.6]} 49... h3
{[%clk 0:00:06.6]} 50. Rd7+ {[%clk 0:00:18.4]} 50... Kg8 {[%clk 0:00:06.6]} 51.
Kg6 {[%clk 0:00:18.5]} 51... Kf8 {[%clk 0:00:06.9]} 52. Rh7 {[%clk 0:00:18.1]}
52... Rg1 {[%clk 0:00:06.5]} 53. g5 {[%clk 0:00:16.9]} 53... Rg3 {[%clk
0:00:06.6]} 54. Kf6 {[%clk 0:00:12.3]} 54... Rf3+ {[%clk 0:00:06.4]} 55. Kg6
{[%clk 0:00:11.8]} 55... Rg3 {[%clk 0:00:06.5]} 56. Rh4 {[%clk 0:00:11.8]} 56...
Ke7 {[%clk 0:00:05.8]} 57. Kf5 {[%clk 0:00:09.5]} 57... Kf7 {[%clk 0:00:05]} 58.
Rh7+ {[%clk 0:00:05.3]} 58... Kg8 {[%clk 0:00:04.8]} 59. Rh4 {[%clk 0:00:04.9]}
59... Kg7 {[%clk 0:00:04.3]} 60. Kf4 {[%clk 0:00:04.2]} 60... Ra3 {[%clk
0:00:04]} 61. Kg4 {[%clk 0:00:04.5]} 61... Ra4+ {[%clk 0:00:03]} 62. Kxh3 {[%clk
0:00:04.9]} 62... Rxh4+ {[%clk 0:00:03]} 63. Kxh4 {[%clk 0:00:05.8]} 63... Kg6
{[%clk 0:00:03.3]} 64. Kg4 {[%clk 0:00:06.7]} 64... Kg7 {[%clk 0:00:03.6]} 65.
Kh5 {[%clk 0:00:07.6]} 65... Kh7 {[%clk 0:00:03.8]} 66. g6+ {[%clk 0:00:08.5]}
66... Kg7 {[%clk 0:00:04.1]} 67. Kg5 {[%clk 0:00:09.3]} 67... Kg8 {[%clk
0:00:04.4]} 68. Kf6 {[%clk 0:00:10.2]} 68... Kf8 {[%clk 0:00:04.5]} 69. Kg5
{[%clk 0:00:10.2]} 69... Kg7 {[%clk 0:00:04.7]} 70. Kf5 {[%clk 0:00:10.1]} 70...
Kg8 {[%clk 0:00:04.8]} 71. Kf6 {[%clk 0:00:11]} 71... Kf8 {[%clk 0:00:04.9]} 72.
Kg5 {[%clk 0:00:11.7]} 72... Kg7 {[%clk 0:00:05.2]} 73. Kh5 {[%clk 0:00:10.9]}
73... Kg8 {[%clk 0:00:05.4]} 74. Kh6 {[%clk 0:00:11.7]} 74... Kh8 {[%clk
0:00:05.5]} 75. g7+ {[%clk 0:00:12.3]} 75... Kg8 {[%clk 0:00:05.7]} 76. Kg6
{[%clk 0:00:13.2]} 1/2-1/2

[Event "Late-Titled-Tuesday-Blitz-December-26-2023"]
[Site "Chess.com"]
[Date "2023.12.26"]
[Round "3"]
[White "JuniorJumper"]
[Black "ZuraTqebuchava"]
[Result "1/2-1/2"]
[WhiteElo "2494"]
[BlackElo "2180"]
[TimeControl "180+1"]
[EndTime "14:30:07 PST"]
[Termination "Game drawn by repetition"]

1. g3 {[%clk 0:03:00.9]} 1... d6 {[%clk 0:02:56.5]} 2. Bg2 {[%clk 0:03:01.4]}
2... g6 {[%clk 0:02:55.4]} 3. d4 {[%clk 0:03:01.2]} 3... Bg7 {[%clk 0:02:55.8]}
4. Nf3 {[%clk 0:03:01.3]} 4... Bg4 {[%clk 0:02:51.6]} 5. O-O {[%clk 0:03:01.2]}
5... Bxf3 {[%clk 0:02:50.7]} 6. Bxf3 {[%clk 0:03:01.3]} 6... c6 {[%clk
0:02:51.3]} 7. c4 {[%clk 0:03:01.5]} 7... Nf6 {[%clk 0:02:51.3]} 8. Nc3 {[%clk
0:03:01.8]} 8... O-O {[%clk 0:02:51.5]} 9. Qb3 {[%clk 0:02:58.6]} 9... Qb6
{[%clk 0:02:48.8]} 10. Be3 {[%clk 0:02:56]} 10... Nbd7 {[%clk 0:02:43.7]} 11.
Qc2 {[%clk 0:02:53.7]} 11... Rac8 {[%clk 0:02:33.9]} 12. c5 {[%clk 0:02:44.6]}
12... dxc5 {[%clk 0:02:29.5]} 13. Na4 {[%clk 0:02:44.6]} 13... Qc7 {[%clk
0:02:25.4]} 14. Nxc5 {[%clk 0:02:44.9]} 14... Nxc5 {[%clk 0:02:24.9]} 15. dxc5
{[%clk 0:02:45.1]} 15... Rfd8 {[%clk 0:02:18.5]} 16. a3 {[%clk 0:02:43.9]} 16...
Nd5 {[%clk 0:02:14.1]} 17. Bc1 {[%clk 0:02:30.5]} 17... h5 {[%clk 0:01:59.6]}
18. e4 {[%clk 0:02:30.6]} 18... Nf6 {[%clk 0:01:55.9]} 19. Bf4 {[%clk
0:02:28.2]} 19... Qd7 {[%clk 0:01:49.4]} 20. Rfd1 {[%clk 0:02:23.8]} 20... Qe8
{[%clk 0:01:49.1]} 21. e5 {[%clk 0:02:21.2]} 21... Nd5 {[%clk 0:01:41.4]} 22.
Bxd5 {[%clk 0:02:21.3]} 22... cxd5 {[%clk 0:01:35.3]} 23. e6 {[%clk 0:02:21.7]}
23... fxe6 {[%clk 0:01:33.7]} 24. Rac1 {[%clk 0:02:15.8]} 24... e5 {[%clk
0:01:28.3]} 25. Bg5 {[%clk 0:02:16.1]} 25... d4 {[%clk 0:01:21.6]} 26. Qb3+
{[%clk 0:02:12]} 26... Qf7 {[%clk 0:01:17.9]} 27. Qxb7 {[%clk 0:02:12.2]} 27...
Bf6 {[%clk 0:00:55.3]} 28. Bxf6 {[%clk 0:01:48.3]} 28... Qxf6 {[%clk 0:00:54.2]}
29. Qe4 {[%clk 0:01:44.6]} 29... Rf8 {[%clk 0:00:50.6]} 30. Rd2 {[%clk
0:01:42.8]} 30... Rc6 {[%clk 0:00:40.3]} 31. b4 {[%clk 0:01:42.9]} 31... a6
{[%clk 0:00:33.8]} 32. a4 {[%clk 0:01:42.8]} 32... Rfc8 {[%clk 0:00:27]} 33.
Rdc2 {[%clk 0:01:38.8]} 33... Qf5 {[%clk 0:00:23.6]} 34. Qxf5 {[%clk 0:01:36]}
34... gxf5 {[%clk 0:00:23.5]} 35. b5 {[%clk 0:01:36.9]} 35... axb5 {[%clk
0:00:23]} 36. axb5 {[%clk 0:01:37.8]} 36... d3 {[%clk 0:00:22.3]} 37. bxc6
{[%clk 0:01:20.1]} 37... dxc2 {[%clk 0:00:21.8]} 38. Rxc2 {[%clk 0:01:21]} 38...
Rxc6 {[%clk 0:00:22]} 39. Rc4 {[%clk 0:01:07.4]} 39... Kf7 {[%clk 0:00:20.4]}
40. Kf1 {[%clk 0:01:07.4]} 40... e4 {[%clk 0:00:18.6]} 41. f3 {[%clk 0:01:06.2]}
41... exf3 {[%clk 0:00:16.3]} 42. Kf2 {[%clk 0:01:06.8]} 42... e5 {[%clk
0:00:12.2]} 43. Kxf3 {[%clk 0:01:06.6]} 43... Ke6 {[%clk 0:00:11.7]} 44. Rh4
{[%clk 0:01:07.2]} 44... Rxc5 {[%clk 0:00:11.5]} 45. Rxh5 {[%clk 0:01:07.8]}
45... Rc3+ {[%clk 0:00:11.2]} 46. Ke2 {[%clk 0:01:07.6]} 46... e4 {[%clk
0:00:08.7]} 47. Rh8 {[%clk 0:01:04.2]} 47... Rc2+ {[%clk 0:00:07.8]} 48. Ke3
{[%clk 0:01:04.2]} 48... Rc3+ {[%clk 0:00:06.3]} 49. Kd4 {[%clk 0:01:04.8]}
49... Rd3+ {[%clk 0:00:06.2]} 50. Kc4 {[%clk 0:01:05.5]} 50... Ke5 {[%clk
0:00:05.4]} 51. Re8+ {[%clk 0:01:04.5]} 51... Kf6 {[%clk 0:00:05.6]} 52. Rf8+
{[%clk 0:01:04.9]} 52... Kg5 {[%clk 0:00:05.7]} 53. Rg8+ {[%clk 0:01:04.7]}
53... Kf6 {[%clk 0:00:05.4]} 54. Rh8 {[%clk 0:01:02.4]} 54... Ke5 {[%clk
0:00:05.1]} 55. Rh6 {[%clk 0:01:02]} 55... Rd2 {[%clk 0:00:03.8]} 56. Kc3 {[%clk
0:01:02.4]} 56... Rd3+ {[%clk 0:00:04.1]} 57. Kc2 {[%clk 0:01:03]} 57... Rd4
{[%clk 0:00:04.2]} 58. Rh8 {[%clk 0:01:02.3]} 58... Rd3 {[%clk 0:00:04.2]} 59.
Rg8 {[%clk 0:01:01.9]} 59... Rd4 {[%clk 0:00:03.9]} 60. h4 {[%clk 0:01:02.4]}
60... Rd6 {[%clk 0:00:03.6]} 61. Kc3 {[%clk 0:00:59.4]} 61... Rd3+ {[%clk
0:00:03.2]} 62. Kc2 {[%clk 0:00:59.6]} 62... Rd6 {[%clk 0:00:04.1]} 63. Re8+
{[%clk 0:00:59.1]} 63... Kd4 {[%clk 0:00:04.3]} 64. Kd2 {[%clk 0:00:59.2]} 64...
Ra6 {[%clk 0:00:03.3]} 65. Rd8+ {[%clk 0:00:59.7]} 65... Ke5 {[%clk 0:00:03.7]}
66. Ke3 {[%clk 0:00:54]} 66... Ra3+ {[%clk 0:00:03.4]} 67. Kf2 {[%clk
0:00:54.7]} 67... Ra2+ {[%clk 0:00:03.8]} 68. Kf1 {[%clk 0:00:55.3]} 68... Ke6
{[%clk 0:00:02.8]} 69. h5 {[%clk 0:00:54.6]} 69... Kf6 {[%clk 0:00:03]} 70. Rg8
{[%clk 0:00:53]} 70... e3 {[%clk 0:00:02.1]} 71. Re8 {[%clk 0:00:51.5]} 71...
Kg5 {[%clk 0:00:02.4]} 72. h6 {[%clk 0:00:42.1]} 72... Kxh6 {[%clk 0:00:02.2]}
73. Rxe3 {[%clk 0:00:42.9]} 73... Kg5 {[%clk 0:00:02.6]} 74. Rf3 {[%clk
0:00:40.6]} 74... Rb2 {[%clk 0:00:02.8]} 75. Rf4 {[%clk 0:00:40.4]} 75... Ra2
{[%clk 0:00:03]} 76. Kg1 {[%clk 0:00:39.2]} 76... Rb2 {[%clk 0:00:03.3]} 77. Kf1
{[%clk 0:00:39.9]} 77... Ra2 {[%clk 0:00:03.8]} 78. Rb4 {[%clk 0:00:40.5]} 78...
Rc2 {[%clk 0:00:03.9]} 79. Ra4 {[%clk 0:00:41.1]} 79... Rb2 {[%clk 0:00:04.3]}
80. Rc4 {[%clk 0:00:41.7]} 80... Ra2 {[%clk 0:00:04.5]} 81. Rb4 {[%clk
0:00:42.4]} 81... Rc2 {[%clk 0:00:04.9]} 82. Rd4 {[%clk 0:00:41.2]} 82... Ra2
{[%clk 0:00:05.4]} 83. Rd5 {[%clk 0:00:41]} 83... Rb2 {[%clk 0:00:05.6]} 84. Rc5
{[%clk 0:00:41.2]} 84... Ra2 {[%clk 0:00:05.9]} 85. Re5 {[%clk 0:00:41.7]} 85...
Rb2 {[%clk 0:00:06.3]} 86. Ra5 {[%clk 0:00:42.5]} 86... Rc2 {[%clk 0:00:05.9]}
87. Ra4 {[%clk 0:00:39.4]} 87... Rb2 {[%clk 0:00:06.1]} 88. Kg1 {[%clk
0:00:39.7]} 88... Rc2 {[%clk 0:00:06.4]} 89. Kh1 {[%clk 0:00:38.8]} 89... Rb2
{[%clk 0:00:06.8]} 90. Rc4 {[%clk 0:00:39.2]} 90... Ra2 {[%clk 0:00:07]} 91. Kg1
{[%clk 0:00:39.7]} 91... Rb2 {[%clk 0:00:07.4]} 92. Kf1 {[%clk 0:00:40.5]} 92...
Ra2 {[%clk 0:00:07.8]} 93. Ke1 {[%clk 0:00:41]} 93... Rb2 {[%clk 0:00:08.3]} 94.
Kf1 {[%clk 0:00:41.2]} 1/2-1/2

[Event "Late-Titled-Tuesday-Blitz-December-26-2023"]
[Site "Chess.com"]
[Date "2023.12.26"]
[Round "3"]
[White "AradNazari"]
[Black "zsoltkorpics"]
[Result "0-1"]
[WhiteElo "2689"]
[BlackElo "2501"]
[TimeControl "180+1"]
[EndTime "14:30:27 PST"]
[Termination "zsoltkorpics won by resignation"]

1. e4 {[%clk 0:02:51.2]} 1... c5 {[%clk 0:02:59.3]} 2. Nf3 {[%clk 0:02:51.1]}
2... e6 {[%clk 0:02:59.9]} 3. d4 {[%clk 0:02:50.6]} 3... cxd4 {[%clk 0:03:00.8]}
4. Nxd4 {[%clk 0:02:51.5]} 4... Nc6 {[%clk 0:03:01.2]} 5. Nc3 {[%clk 0:02:50.6]}
5... Qc7 {[%clk 0:03:01.9]} 6. Be3 {[%clk 0:02:51.2]} 6... a6 {[%clk 0:03:01.9]}
7. Qf3 {[%clk 0:02:51.5]} 7... Ba3 {[%clk 0:03:01.5]} 8. O-O-O {[%clk
0:02:32.3]} 8... Ne5 {[%clk 0:02:58.7]} 9. Qg3 {[%clk 0:02:13]} 9... Qxc3 {[%clk
0:02:58.4]} 10. bxa3 {[%clk 0:02:12.8]} 10... Ng6 {[%clk 0:02:56.5]} 11. Nb3
{[%clk 0:02:05.9]} 11... N8e7 {[%clk 0:02:38.4]} 12. h4 {[%clk 0:02:04.5]} 12...
h5 {[%clk 0:02:28.2]} 13. f4 {[%clk 0:01:57.8]} 13... d5 {[%clk 0:02:17]} 14.
Bd3 {[%clk 0:01:43.8]} 14... dxe4 {[%clk 0:02:00.7]} 15. Bxe4 {[%clk 0:01:37.3]}
15... Nf5 {[%clk 0:02:00.5]} 16. Bxf5 {[%clk 0:01:34.7]} 16... exf5 {[%clk
0:02:01.4]} 17. Rd3 {[%clk 0:01:32.4]} 17... Qc7 {[%clk 0:01:58.3]} 18. Bc5
{[%clk 0:01:05.5]} 18... Qxf4+ {[%clk 0:01:51.4]} 19. Re3+ {[%clk 0:01:05.8]}
19... Be6 {[%clk 0:01:49.2]} 20. Qe1 {[%clk 0:01:05.9]} 20... O-O-O {[%clk
0:01:42.6]} 21. Qa5 {[%clk 0:00:56]} 21... Rd5 {[%clk 0:01:28.3]} 22. g3 {[%clk
0:00:32.8]} 22... Qxe3+ {[%clk 0:01:22.6]} 23. Bxe3 {[%clk 0:00:33]} 23... Rxa5
{[%clk 0:01:23.5]} 24. Nxa5 {[%clk 0:00:33.1]} 24... Rd8 {[%clk 0:01:16.5]} 25.
Rh2 {[%clk 0:00:31]} 25... Ne5 {[%clk 0:01:15]} 26. Bf4 {[%clk 0:00:26.5]} 26...
Nc4 {[%clk 0:01:09.7]} 27. Nxc4 {[%clk 0:00:25.3]} 27... Bxc4 {[%clk 0:01:10.6]}
28. Kb2 {[%clk 0:00:24.2]} 28... Bd5 {[%clk 0:01:04.7]} 29. Rd2 {[%clk
0:00:20.7]} 29... Be4 {[%clk 0:01:04.6]} 30. Re2 {[%clk 0:00:21.1]} 30... Rd1
{[%clk 0:01:02.9]} 31. Re3 {[%clk 0:00:21.1]} 31... Rf1 {[%clk 0:00:59.6]} 32.
Rc3+ {[%clk 0:00:21.4]} 32... Kd8 {[%clk 0:00:59.1]} 33. a4 {[%clk 0:00:17.5]}
33... Rf3 {[%clk 0:00:55.4]} 34. Rc5 {[%clk 0:00:16.7]} 34... Rf2 {[%clk
0:00:51.8]} 35. a5 {[%clk 0:00:16.6]} 35... f6 {[%clk 0:00:49]} 36. Kb3 {[%clk
0:00:16.7]} 36... Rf3+ {[%clk 0:00:47.7]} 37. c3 {[%clk 0:00:17.2]} 37... Rf1
{[%clk 0:00:46.2]} 38. Ka3 {[%clk 0:00:14.2]} 38... Rf2 {[%clk 0:00:35.2]} 39.
Kb3 {[%clk 0:00:10.8]} 39... Bb1 {[%clk 0:00:32.3]} 40. Rd5+ {[%clk 0:00:08.3]}
40... Ke8 {[%clk 0:00:28.1]} 41. Rd6 {[%clk 0:00:02.6]} 41... Bxa2+ {[%clk
0:00:27.1]} 42. Kb4 {[%clk 0:00:03.4]} 42... Rb2+ {[%clk 0:00:24.2]} 43. Kc5
{[%clk 0:00:03.7]} 43... Rb5+ {[%clk 0:00:23.8]} 44. Kd4 {[%clk 0:00:04.4]}
44... Rxa5 {[%clk 0:00:23.5]} 45. Rb6 {[%clk 0:00:04.3]} 45... Rb5 {[%clk
0:00:23.2]} 46. Rxb5 {[%clk 0:00:04.9]} 46... axb5 {[%clk 0:00:24.1]} 47. Kc5
{[%clk 0:00:05.8]} 47... Bc4 {[%clk 0:00:23.2]} 48. Kb6 {[%clk 0:00:06.5]} 48...
Kd7 {[%clk 0:00:15.1]} 49. Kxb7 {[%clk 0:00:07]} 49... Ke6 {[%clk 0:00:14.6]}
50. Kc6 {[%clk 0:00:07.6]} 50... Kf7 {[%clk 0:00:13.7]} 51. Kd6 {[%clk
0:00:08.3]} 51... Bb3 {[%clk 0:00:12.1]} 52. Kd7 {[%clk 0:00:07.7]} 52... Be6+
{[%clk 0:00:11.3]} 53. Kd6 {[%clk 0:00:08.3]} 53... Bc4 {[%clk 0:00:10.7]} 54.
Be3 {[%clk 0:00:08.6]} 54... Kg6 {[%clk 0:00:08.2]} 55. Ke7 {[%clk 0:00:08.3]}
55... Kh7 {[%clk 0:00:07.6]} 56. Kf8 {[%clk 0:00:07.3]} 56... Kg6 {[%clk
0:00:07.3]} 57. Bf4 {[%clk 0:00:07.3]} 57... Kh7 {[%clk 0:00:06.7]} 58. Be3
{[%clk 0:00:07.9]} 58... Kg6 {[%clk 0:00:07]} 59. Bc5 {[%clk 0:00:08.5]} 59...
f4 {[%clk 0:00:03.4]} 60. gxf4 {[%clk 0:00:08]} 60... Kf5 {[%clk 0:00:03.8]} 61.
Bd6 {[%clk 0:00:04.7]} 61... g5 {[%clk 0:00:04.2]} 62. fxg5 {[%clk 0:00:02.8]}
62... fxg5 {[%clk 0:00:05.1]} 63. hxg5 {[%clk 0:00:03.5]} 63... Kxg5 {[%clk
0:00:06]} 64. Ke7 {[%clk 0:00:03.3]} 64... Kg4 {[%clk 0:00:06.6]} 65. Kf6 {[%clk
0:00:03.5]} 65... h4 {[%clk 0:00:07.3]} 66. Bh2 {[%clk 0:00:01.9]} 66... Kh3
{[%clk 0:00:07.1]} 67. Bf4 {[%clk 0:00:01.4]} 67... Kg2 {[%clk 0:00:07.7]} 68.
Kg5 {[%clk 0:00:01.6]} 68... h3 {[%clk 0:00:08.3]} 69. Kf5 {[%clk 0:00:02.4]}
69... h2 {[%clk 0:00:08.9]} 70. Bxh2 {[%clk 0:00:02.6]} 70... Kxh2 {[%clk
0:00:08.9]} 71. Ke5 {[%clk 0:00:03.5]} 71... Kg2 {[%clk 0:00:09.4]} 72. Kd4
{[%clk 0:00:04.4]} 72... Kf2 {[%clk 0:00:10.2]} 73. Kc5 {[%clk 0:00:05.3]} 73...
Ke2 {[%clk 0:00:10.8]} 74. Kb4 {[%clk 0:00:06.2]} 74... Kd2 {[%clk 0:00:11.6]}
75. Ka3 {[%clk 0:00:07.1]} 75... Kd3 {[%clk 0:00:07.8]} 76. Kb2 {[%clk
0:00:07.4]} 76... Bd5 {[%clk 0:00:06.6]} 77. Ka3 {[%clk 0:00:06.7]} 77... Bc6
{[%clk 0:00:04.5]} 78. Kb3 {[%clk 0:00:06.7]} 78... Bd5+ {[%clk 0:00:04.4]} 79.
Kb4 {[%clk 0:00:06.8]} 79... Bc4 {[%clk 0:00:04.9]} 80. Ka3 {[%clk 0:00:07.5]}
80... Kd2 {[%clk 0:00:04.3]} 81. Kb2 {[%clk 0:00:07.9]} 81... Ke3 {[%clk
0:00:04.9]} 82. Ka3 {[%clk 0:00:08.2]} 82... Ke4 {[%clk 0:00:05.7]} 83. Kb4
{[%clk 0:00:08]} 83... Kd5 {[%clk 0:00:06]} 84. Ka3 {[%clk 0:00:08.7]} 84... Bd3
{[%clk 0:00:06.2]} 85. Kb4 {[%clk 0:00:08.2]} 85... Kc6 {[%clk 0:00:06.9]} 86.
Ka5 {[%clk 0:00:08.4]} 86... Kc5 {[%clk 0:00:07.8]} 87. Ka6 {[%clk 0:00:05.5]}
87... Kc4 {[%clk 0:00:08.7]} 88. Kb6 {[%clk 0:00:05.8]} 88... Kxc3 {[%clk
0:00:09.1]} 0-1